Workbook

Sheet PRV
B1: Pressure Reducing Station Calculator
C3: ="PRESSURE REDUCING STATION 1 - "&ROUND(D17,0)&"/"&ROUND(D36,0) -> PRESSURE REDUCING STATION 1 - 850/150 | L3: ="PRESSURE REDUCING STATION 2 - "&ROUND(M17,0)&"/"&ROUND(M36,0) -> PRESSURE REDUCING STATION 2 - 850/150
H4: =(D23+M23)/1000 -> 603 | I4: steam
H5: =H6-H4 -> 98.41882296 | I5: water
C6: =ROUND(D31/1000,0) & " klb/hr, " & ROUND(D27,0) & " psig, " & ROUND(IF(D29>0,D29,G27),0) & " °F" -> 66 klb/hr, 450 psig, 300 °F | H6: =(D42+M42)/1000 -> 701.418823 | I6: total | L6: =ROUND(M31/1000,0) & " klb/hr, " & ROUND(M27,0) & " psig, " & ROUND(IF(M29>0,M29,P27),0) & " °F" -> 33 klb/hr, 450 psig, 300 °F
C7: =G29 -> Subcooled | L7: =P29 -> Subcooled
F10: =ROUND(T_ph(D36+Convert_Gauge_to_Absolute,G21),0) & " °F" -> 818 °F | O10: =ROUND(T_ph(M36+Convert_Gauge_to_Absolute,P21),0) & " °F" -> 818 °F
C11: =ROUND(D23/1000,0) & " klb/hr, " & ROUND(D17,0) & " psig, " & ROUND(D21,0) & " °F" -> 403 klb/hr, 850 psig, 870 °F | H11: =ROUND(D42/1000,0) & " klb/hr, " & ROUND(D36,0) & " psig, " & ROUND(D40,0) & " °F" -> 469 klb/hr, 150 psig, 500 °F | L11: =ROUND(M23/1000,0) & " klb/hr, " & ROUND(M17,0) & " psig, " & ROUND(M21,0) & " °F" -> 200 klb/hr, 850 psig, 870 °F | Q11: =ROUND(M42/1000,0) & " klb/hr, " & ROUND(M36,0) & " psig, " & ROUND(M40,0) & " °F" -> 233 klb/hr, 150 psig, 500 °F
C12: =G19 -> Superheated | H12: =G38 -> Superheated | L12: =P19 -> Superheated | Q12: =P38 -> Superheated
C15: Inlet Steam Section | L15: Inlet Steam Section
G16: Sat. Temp | P16: Sat. Temp
C17: Steam Pressure : | D17: 850 | E17: psig | G17: =Tsat_p(D17+Convert_Gauge_to_Absolute) -> 527.3073112 | H17: °F | L17: Steam Pressure : | M17: 850 | N17: psig | P17: =Tsat_p(M17+Convert_Gauge_to_Absolute) -> 527.3073112 | Q17: °F
G18: State | P18: State
C19: Degree of Superheat : | D19: 342.7 | E19: °F | G19: =IF(D19=0,"Saturated","Superheated") -> Superheated | L19: Degree of Superheat : | M19: 342.7 | N19: °F | P19: =IF(M19=0,"Saturated","Superheated") -> Superheated
G20: Enthalpy | P20: Enthalpy
C21: Temperature : | D21: =D19+G17 -> 870.0073112 | E21: °F | G21: =IF(G19="Saturated",hV_p(D17+Convert_Gauge_to_Absolute),h_pt(D17+Convert_Gauge_to_Absolute,D21)) -> 1436.370629 | H21: Btu/lb | L21: Temperature : | M21: =M19+P17 -> 870.0073112 | N21: °F | P21: =IF(P19="Saturated",hV_p(M17+Convert_Gauge_to_Absolute),h_pt(M17+Convert_Gauge_to_Absolute,M21)) -> 1436.370629 | Q21: Btu/lb
G22: Entropy | P22: Entropy
C23: Flow : | D23: =403000 -> 403000 | E23: lb/hr | G23: =IF(G19="Saturated",sV_p(D17+Convert_Gauge_to_Absolute),s_pT(D17+Convert_Gauge_to_Absolute,D21)) -> 1.618590415 | H23: Btu/lb°F | L23: Flow : | M23: =200000 -> 200000 | N23: lb/hr | P23: =IF(P19="Saturated",sV_p(M17+Convert_Gauge_to_Absolute),s_pT(M17+Convert_Gauge_to_Absolute,M21)) -> 1.618590415 | Q23: Btu/lb°F
C25: Desuperheating Water Section | L25: Desuperheating Water Section
G26: Sat. Temp | P26: Sat. Temp
C27: Water Pressure : | D27: 450 | E27: psig | G27: =Tsat_p(D27+Convert_Gauge_to_Absolute) -> 459.5614832 | H27: °F | L27: Water Pressure : | M27: 450 | N27: psig | P27: =Tsat_p(M27+Convert_Gauge_to_Absolute) -> 459.5614832 | Q27: °F
G28: State | P28: State
C29: Water Temperature : | D29: 300 | E29: °F | G29: =IF(D29="","Saturated",IF(D29>G27,"Superheated","Subcooled")) -> Subcooled | L29: Water Temperature : | M29: 300 | N29: °F | P29: =IF(M29="","Saturated",IF(M29>P27,"Superheated","Subcooled")) -> Subcooled
G30: Enthalpy | P30: Enthalpy
C31: Flow Required : | D31: =D23*(G21-G40)/(G40-G31) -> 65775.76393 | E31: lb/hr | G31: =IF(G29="Saturated",hV_p(D27+Convert_Gauge_to_Absolute),h_pt(D27+Convert_Gauge_to_Absolute,D29)) -> 270.4906482 | H31: Btu/lb | L31: Flow Required : | M31: =M23*(P21-P40)/(P40-P31) -> 32643.05902 | N31: lb/hr | P31: =IF(P29="Saturated",hV_p(M27+Convert_Gauge_to_Absolute),h_pt(M27+Convert_Gauge_to_Absolute,M29)) -> 270.4906482 | Q31: Btu/lb
D32: =v_ph(D27+Convert_Gauge_to_Absolute,G31)*D31*Convert_ft3_to_gal/60 -> 142.8513868 | E32: gpm | M32: =v_ph(M27+Convert_Gauge_to_Absolute,P31)*M31*Convert_ft3_to_gal/60 -> 70.89398848 | N32: gpm
C34: Outlet Steam Section | L34: Outlet Steam Section
G35: Sat. Temp | P35: Sat. Temp
C36: Steam Pressure : | D36: 150 | E36: psig | G36: =Tsat_p(D36+Convert_Gauge_to_Absolute) -> 365.8722722 | H36: °F | L36: Steam Pressure : | M36: 150 | N36: psig | P36: =Tsat_p(M36+Convert_Gauge_to_Absolute) -> 365.8722722 | Q36: °F
G37: State | P37: State
C38: Degree of Superheat : | D38: 134.1 | E38: °F | G38: =IF(D38=0,"Saturated",IF(D38>0,"Superheated","Subcooled")) -> Superheated | L38: Degree of Superheat : | M38: 134.1 | N38: °F | P38: =IF(M38=0,"Saturated",IF(M38>0,"Superheated","Subcooled")) -> Superheated
G39: Enthalpy | P39: Enthalpy
C40: Temperature : | D40: =D38+G36 -> 499.9722722 | E40: °F | G40: =IF(G38="Saturated",hV_p(D36+Convert_Gauge_to_Absolute),h_pt(D36+Convert_Gauge_to_Absolute,D40)) -> 1272.781441 | H40: Btu/lb | L40: Temperature : | M40: =M38+P36 -> 499.9722722 | N40: °F | P40: =IF(P38="Saturated",hV_p(M36+Convert_Gauge_to_Absolute),h_pt(M36+Convert_Gauge_to_Absolute,M40)) -> 1272.781441 | Q40: Btu/lb
C42: Flow : | D42: =D23+D31 -> 468775.7639 | E42: lb/hr | L42: Flow : | M42: =M23+M31 -> 232643.059 | N42: lb/hr
C45: ="PRESSURE REDUCING STATION 3 - "&ROUND(D59,0)&"/"&ROUND(D78,0) -> PRESSURE REDUCING STATION 3 - 125/50 | L45: ="PRESSURE REDUCING STATION 4 - "&ROUND(M59,0)&"/"&ROUND(M78,0) -> PRESSURE REDUCING STATION 4 - 50/50
H46: =(D65+M65)/1000 -> 900 | I46: steam
H47: =H48-H46 -> 84.96154175 | I47: water
C48: =ROUND(D73/1000,0) & " klb/hr, " & ROUND(D69,0) & " psig, " & ROUND(IF(D71>0,D71,G69),0) & " °F" -> 41 klb/hr, 450 psig, 300 °F | H48: =(D84+M84)/1000 -> 984.9615418 | I48: total | L48: =ROUND(M73/1000,0) & " klb/hr, " & ROUND(M69,0) & " psig, " & ROUND(IF(M71>0,M71,P69),0) & " °F" -> 44 klb/hr, 450 psig, 300 °F
C49: =G71 -> Subcooled | L49: =P71 -> Subcooled
F52: =ROUND(T_ph(D78+Convert_Gauge_to_Absolute,G63),0) & " °F" -> 472 °F | O52: =ROUND(T_ph(M78+Convert_Gauge_to_Absolute,P63),0) & " °F" -> 481 °F
C53: =ROUND(D65/1000,0) & " klb/hr, " & ROUND(D59,0) & " psig, " & ROUND(D63,0) & " °F" -> 450 klb/hr, 125 psig, 488 °F | H53: =ROUND(D84/1000,0) & " klb/hr, " & ROUND(D78,0) & " psig, " & ROUND(D82,0) & " °F" -> 491 klb/hr, 50 psig, 308 °F | L53: =ROUND(M65/1000,0) & " klb/hr, " & ROUND(M59,0) & " psig, " & ROUND(M63,0) & " °F" -> 450 klb/hr, 50 psig, 481 °F | Q53: =ROUND(M84/1000,0) & " klb/hr, " & ROUND(M78,0) & " psig, " & ROUND(M82,0) & " °F" -> 494 klb/hr, 50 psig, 308 °F
C54: =G61 -> Superheated | H54: =G80 -> Superheated | L54: =P61 -> Superheated | Q54: =P80 -> Superheated
C57: Inlet Steam Section | L57: Inlet Steam Section
G58: Sat. Temp | P58: Sat. Temp
C59: Steam Pressure : | D59: 125 | E59: psig | G59: =Tsat_p(D59+Convert_Gauge_to_Absolute) -> 352.8705373 | H59: °F | L59: Steam Pressure : | M59: =D78 -> 50 | N59: psig | P59: =Tsat_p(M59+Convert_Gauge_to_Absolute) -> 297.6514851 | Q59: °F
G60: State | P60: State
C61: Degree of Superheat : | D61: 135 | E61: °F | G61: =IF(D61=0,"Saturated","Superheated") -> Superheated | L61: Degree of Superheat : | M61: 183.3 | N61: °F | P61: =IF(M61=0,"Saturated","Superheated") -> Superheated
G62: Enthalpy | P62: Enthalpy
C63: Temperature : | D63: =D61+G59 -> 487.8705373 | E63: °F | G63: =IF(G61="Saturated",hV_p(D59+Convert_Gauge_to_Absolute),h_pt(D59+Convert_Gauge_to_Absolute,D63)) -> 1269.025417 | H63: Btu/lb | L63: Temperature : | M63: =M61+P59 -> 480.9514851 | N63: °F | P63: =IF(P61="Saturated",hV_p(M59+Convert_Gauge_to_Absolute),h_pt(M59+Convert_Gauge_to_Absolute,M63)) -> 1273.336662 | Q63: Btu/lb
G64: Entropy | P64: Entropy
C65: Flow : | D65: 450000 | E65: lb/hr | G65: =IF(G61="Saturated",sV_p(D59+Convert_Gauge_to_Absolute),s_pT(D59+Convert_Gauge_to_Absolute,D63)) -> 1.662270419 | H65: Btu/lb°F | L65: Flow : | M65: 450000 | N65: lb/hr | P65: =IF(P61="Saturated",sV_p(M59+Convert_Gauge_to_Absolute),s_pT(M59+Convert_Gauge_to_Absolute,M63)) -> 1.749691182 | Q65: Btu/lb°F
C67: Desuperheating Water Section | L67: Desuperheating Water Section
G68: Sat. Temp | P68: Sat. Temp
C69: Water Pressure : | D69: 450 | E69: psig | G69: =Tsat_p(D69+Convert_Gauge_to_Absolute) -> 459.5614832 | H69: °F | L69: Water Pressure : | M69: 450 | N69: psig | P69: =Tsat_p(M69+Convert_Gauge_to_Absolute) -> 459.5614832 | Q69: °F
G70: State | P70: State
C71: Water Temperature : | D71: 300 | E71: °F | G71: =IF(D71="","Saturated",IF(D71>G69,"Superheated","Subcooled")) -> Subcooled | L71: Water Temperature : | M71: 300 | N71: °F | P71: =IF(M71="","Saturated",IF(M71>P69,"Superheated","Subcooled")) -> Subcooled
G72: Enthalpy | P72: Enthalpy
C73: Flow Required : | D73: =D65*(G63-G82)/(G82-G73) -> 41419.90075 | E73: lb/hr | G73: =IF(G71="Saturated",hV_p(D69+Convert_Gauge_to_Absolute),h_pt(D69+Convert_Gauge_to_Absolute,D71)) -> 270.4906482 | H73: Btu/lb | L73: Flow Required : | M73: =M65*(P63-P82)/(P82-P73) -> 43541.641 | N73: lb/hr | P73: =IF(P71="Saturated",hV_p(M69+Convert_Gauge_to_Absolute),h_pt(M69+Convert_Gauge_to_Absolute,M71)) -> 270.4906482 | Q73: Btu/lb
D74: =v_ph(D69+Convert_Gauge_to_Absolute,G73)*D73*Convert_ft3_to_gal/60 -> 89.95547766 | E74: gpm | M74: =v_ph(M69+Convert_Gauge_to_Absolute,P73)*M73*Convert_ft3_to_gal/60 -> 94.56345967 | N74: gpm
C76: Outlet Steam Section | L76: Outlet Steam Section
G77: Sat. Temp | P77: Sat. Temp
C78: Steam Pressure : | D78: 50 | E78: psig | G78: =Tsat_p(D78+Convert_Gauge_to_Absolute) -> 297.6514851 | H78: °F | L78: Steam Pressure : | M78: 50 | N78: psig | P78: =Tsat_p(M78+Convert_Gauge_to_Absolute) -> 297.6514851 | Q78: °F
G79: State | P79: State
C80: Degree of Superheat : | D80: 10 | E80: °F | G80: =IF(D80=0,"Saturated",IF(D80>0,"Superheated","Subcooled")) -> Superheated | L80: Degree of Superheat : | M80: 10 | N80: °F | P80: =IF(M80=0,"Saturated",IF(M80>0,"Superheated","Subcooled")) -> Superheated
G81: Enthalpy | P81: Enthalpy
C82: Temperature : | D82: =D80+G78 -> 307.6514851 | E82: °F | G82: =IF(G80="Saturated",hV_p(D78+Convert_Gauge_to_Absolute),h_pt(D78+Convert_Gauge_to_Absolute,D82)) -> 1184.862747 | H82: Btu/lb | L82: Temperature : | M82: =M80+P78 -> 307.6514851 | N82: °F | P82: =IF(P80="Saturated",hV_p(M78+Convert_Gauge_to_Absolute),h_pt(M78+Convert_Gauge_to_Absolute,M82)) -> 1184.862747 | Q82: Btu/lb
C84: Flow : | D84: =D65+D73 -> 491419.9008 | E84: lb/hr | L84: Flow : | M84: =M65+M73 -> 493541.641 | N84: lb/hr
C86: Copy Rights: Not to be copied or distributed without specific permission from Inveno Engineering LLC; kelly.paffel@invenoeng.com

Sheet Turbine
B1: Steam Turbine Calculator
B2: This excel sheet calculates the power that turbine can generate with specific inlet and outlet conditions.
G4: Sat. Temp | P4: Shaft Energy
C5: Inlet Steam Pressure : | D5: 831.2 | E5: psig | G5: =Tsat_p(D5+Convert_Gauge_to_Absolute) -> 524.7361863 | H5: °F | K5: Efficiency : | L5: 1st Stage | M5: 80 | N5: % | P5: =(G9-G23)*D15*Convert_btu_to_kW/1000 -> 6.805077216 | Q5: MW
G6: State
C7: Degree of Superheat : | D7: 295 | E7: °F | G7: =IF(D7=0,"Saturated","Superheated") -> Superheated | K7: Efficiency : | L7: 2nd Stage | M7: 80 | N7: % | P7: =D28*(G9-G36)*Convert_btu_to_kW/1000 -> 11.88664448 | Q7: MW
G8: Enthalpy
C9: Inlet Temperature : | D9: =D7+G5 -> 819.7361863 | E9: °F | G9: =IF(G7="Saturated",hV_p(D5+Convert_Gauge_to_Absolute),h_pt(D5+Convert_Gauge_to_Absolute,D9)) -> 1408.020368 | H9: Btu/lb | K9: Efficiency : | L9: Cond Stage | M9: 80 | N9: % | P9: =D41*(G9-G49)*Convert_btu_to_kW/1000 -> 15.08286478 | Q9: MW
G10: Entropy
C11: Steam Flow : | D11: =D15+D28+D41 -> 497500 | E11: lb/hr | G11: =IF(G7="Saturated",sV_p(D5+Convert_Gauge_to_Absolute),s_pT(D5+Convert_Gauge_to_Absolute,D9)) -> 1.599131353 | H11: Btu/lb°F | O11: Total Shaft Energy | P11: =P5+P7+P9 -> 33.77458647 | Q11: MW
V14: current
C15: Outlet Steam Flow : | D15: 156600 | E15: lb/hr | U15: 150 | V15: =D15/D11 -> 0.3147738693 | W15: 0.2844473641 | X15: 0.1422845691 | Y15: 0.519119697
G16: Sat. Temp | U16: 50 | V16: =D28/D11 -> 0.3971859296 | W16: 0.5863031697 | X16: 0.6094188377 | Y16: 0.4438212121
C17: Outlet Steam Pressure : | D17: 141.8 | E17: psig | G17: =Tsat_p(D17+Convert_Gauge_to_Absolute) -> 361.7900318 | H17: °F | U17: cond | V17: =D41/D11 -> 0.288040201 | W17: 0.1292494663 | X17: 0.2482965932 | Y17: 0.03705909091
G18: State
C19: Outlet Temperature : | D19: =T_ph(D17+Convert_Gauge_to_Absolute,G23) -> 473.8830911 | E19: °F | G19: =IF(D21>0,"Superheated",IF(D23=0,"Liquid","Saturated")) -> Superheated
G20: Enthalpy (Isentropic)
C21: Degree of Superheat : | D21: =IF(D19>=G17,D19-G17,"") -> 112.0930593 | E21: °F | G21: =h_ps(D17+Convert_Gauge_to_Absolute,G11) -> 1222.67644 | H21: Btu/lb
G22: Enthalpy (Actual)
C23: Steam Quality : | D23: =x_ph(D17+Convert_Gauge_to_Absolute,G23) -> 1 | G23: =G9-(M5/100*(G9-G21)) -> 1259.745226 | H23: Btu/lb
G24: Entropy (Actual) | M24: =D5 -> 831.2 | N24: psig | P24: =ROUND(D9,0) & " °F temp" -> 820 °F temp
G25: =IF(G19="Saturated",sV_p(D17+Convert_Gauge_to_Absolute),s_pT(D17+Convert_Gauge_to_Absolute,D19)) -> 1.640346991 | H25: Btu/lb°F | P25: =ROUND(D11/1000,0) & " klb/hr" -> 498 klb/hr | X25: =ROUND(P11,1) & " MW" -> 33.8 MW
C28: Outlet Steam Flow : | D28: 197600 | E28: lb/hr
G29: Sat. Temp | P29: =ROUND(D15/1000,0) & " klb/hr" -> 157 klb/hr | X29: =ROUND(P11*1341.02209,0) & " hp" -> 45292 hp
C30: Outlet Steam Pressure : | D30: 51.5 | E30: psig | G30: =Tsat_p(D30+Convert_Gauge_to_Absolute) -> 299.1744681 | H30: °F | M30: =D17 -> 141.8 | N30: psig | T30: =ROUND(D28/1000,0) & " klb/hr" -> 198 klb/hr
G31: State
C32: Outlet Temperature : | D32: =T_ph(D30+Convert_Gauge_to_Absolute,G36) -> 341.5759284 | E32: °F | G32: =IF(D34>0,"Superheated",IF(D36=0,"Liquid","Saturated")) -> Superheated
G33: Enthalpy (Isentropic)
C34: Degree of Superheat : | D34: =IF(D32>=G30,D32-G30,"") -> 42.40146031 | E34: °F | G34: =h_ps(D30+Convert_Gauge_to_Absolute,G11) -> 1151.448287 | H34: Btu/lb | M34: =D30 -> 51.5 | N34: psig
G35: Enthalpy (Actual)
C36: Steam Quality : | D36: =x_ph(D30+Convert_Gauge_to_Absolute,G36) -> 1 | G36: =G23-(M7/100*(G21-G34)) -> 1202.762704 | H36: Btu/lb | W36: =ROUND(D43,0) & " psig" -> -11 psig
G37: Entropy (Actual)
G38: =IF(G32="Saturated",sV_p(D30+Convert_Gauge_to_Absolute),s_pT(D30+Convert_Gauge_to_Absolute,D32)) -> 1.665943732 | H38: Btu/lb°F | W38: =ROUND(D41/1000,0)&" klb/hr" -> 143 klb/hr
C41: Outlet Steam Flow : | D41: 143300 | E41: lb/hr
G42: Sat. Temp
C43: Outlet Steam Pressure : | D43: -11.14919756 | E43: psig | G43: =Tsat_p(D43+Convert_Gauge_to_Absolute) -> 148.0469793 | H43: °F
G44: State
C45: Outlet Temperature : | D45: =T_ph(D43+Convert_Gauge_to_Absolute,G49) -> 148.0469793 | E45: °F | G45: =IF(D47>0,"Superheated",IF(D49=0,"Liquid","Saturated")) -> Saturated
G46: Enthalpy (Isentropic)
C47: Degree of Superheat : | D47: =IF(D45>=G43,D45-G43,"") -> 0 | E47: °F | G47: =h_ps(D43+Convert_Gauge_to_Absolute,G11) -> 959.0944185 | H47: Btu/lb
G48: Enthalpy (Actual)
C49: Steam Quality : | D49: =x_ph(D43+Convert_Gauge_to_Absolute,G49) -> 0.924617504 | G49: =G36-(M9/100*(G34-G47)) -> 1048.879608 | H49: Btu/lb
G50: Entropy (Actual)
G51: =IF(G45="Saturated",sV_p(D43+Convert_Gauge_to_Absolute),s_pT(D43+Convert_Gauge_to_Absolute,D45)) -> 1.872020449 | H51: Btu/lb°F
C55: Copy Rights: Not to be copied or distributed without specific permission from Inveno Engineering LLC; kelly.paffel@invenoeng.com

Sheet Scenario
A3: Scenario # | B3: Total MW Required (MW) | C3: Power from TG 1 | D3: Power from TG 2 | E3: Tie MW | F3: Total Steam Flow Required by 150# & 50# consumer | G3: Steam Flow to TG 1 | H3: Steam Flow to TG 2 | I3: Steam Flow to 850/150 PRV 1 - Old (Max Flow 403klb) | J3: Steam Flow to 850/150 PRV 1 - New (Max Flow 200klb)
A4: 1 | B4: 70 | C4: 0 | D4: 35 | E4: =B4-C4-D4 -> 35 | G4: 0 | H4: 660

Sheet Blank for Calculation
A1: User Calculations Sheet
A3: This is a blank sheet provided for the user to make notes, carry out calculations etc.
B8: kW | C8: lb/hr
B9: 28891.32654 | C9: 500000
B10: 11651.95031 | C10: =B13-C9-C11 -> 362400
B11: 5345.467702 | C11: =B15 -> 117600
B13: 980000
B14: 0.12
B15: =B13*B14 -> 117600
B18: flow | C18: temp | D18: pressure | E18: enthalpy
A19: TG2 | B19: 300000 | C19: 360 | D19: 50 | E19: =h_pt(D19+Convert_Gauge_to_Absolute,C19) -> 1212.65188
A20: PRV | B20: 300000 | C20: 481 | D20: 50 | E20: =h_pt(D20+Convert_Gauge_to_Absolute,C20) -> 1273.360598
A21: Total | B21: =SUM(B19:B20) -> 600000 | C21: =T_ph(D21+Convert_Gauge_to_Absolute,E21) -> 419.8355818 | D21: 50 | E21: =(B19*E19+B20*E20)/B21 -> 1243.006239

Sheet Properties
B1: Steam Tables (English Units)
B6: Saturation properties given temperature | F6: Saturation properties given pressure
B7: Temperature | C7: 50 | D7: degF | F7: Pressure | G7: 12.57 | H7: psi (a)
B8: Saturation pressure | C8: =psat_t(C7) -> 0.17813301 | D8: psi (a) | F8: Saturation temperature | G8: =Tsat_p(G7) -> 204.1777779 | H8: degF
B9: Liquid | F9: Liquid
B10: Enthalpy | C10: =hL_T(C7) -> 18.06581627 | D10: btu/lb | F10: Enthalpy | G10: =hL_p(G7) -> 172.3024255 | H10: btu/lb
B11: Density | C11: =rhoL_T(C7) -> 62.40634262 | D11: lb /ft3 | F11: Density | G11: =rhoL_P(G7) -> 60.02020914 | H11: lb /ft3
B12: Entropy | C12: =sL_T(C7) -> 0.0360860529 | D12: btu/(lb F) | F12: Entropy | G12: =sL_p(G7) -> 0.3003874422 | H12: btu/(lb F)
B13: Vapour | F13: Vapour
B14: Vapour enthalpy | C14: =hV_T(C7) -> 1083.073877 | D14: btu/lb | F14: Vapour enthalpy | G14: =hV_p(G7) -> 1147.318491 | H14: btu/lb
B15: Vapour density | C15: =rhoV_T(C7) -> 0.0005872328646 | D15: lb /ft3 | F15: Vapour density | G15: =rhoV_p(G7) -> 0.03223554216 | H15: lb /ft3
B16: Vapour Entropy | C16: =sV_T(C7) -> 2.125691679 | D16: btu/(lb F) | F16: vapour Entropy | G16: =sV_p(G7) -> 1.769114371 | H16: btu/(lb F)
B17: Evaporation energy | C17: =C14-C10 -> 1065.008061 | D17: btu/lb | F17: Evaporation energy | G17: =G14-G10 -> 975.0160654 | H17: btu/lb
B19: Properties given pressure and temperature | F19: Properties given pressure and enthalpy
B20: Pressure | C20: 100 | D20: psi (a) | F20: Pressure | G20: 12.57 | H20: psi (a)
B21: Temperature | C21: 50 | D21: degF | F21: Enthalpy | G21: 2788 | H21: btu/lb
B22: Enthalpy | C22: =h_pt(C20,C21) -> 18.3543276 | D22: btu/lb | F22: Temperature | G22: =T_ph(G20,G21) -> 3074.570748 | H22: degF
B23: Density | C23: =rho_pT(C20,C21) -> 62.42685928 | D23: lb /ft3 | F23: Density | G23: =rho_ph(G20,G21) -> 0.005970345217 | H23: lb /ft3
B24: Entropy | C24: =s_pT(C20,C21) -> 0.03607146366 | D24: btu/(lb F) | F24: Entropy | G24: =s_ph(G20,G21) -> 2.674276314 | H24: btu/(lb F)
B25: Vapour fraction | C25: =x_ph(C20,C22)*100 -> 0 | D25: % | F25: Vapour fraction | G25: =x_ph(G20,G21)*100 -> 100 | H25: %
B26: IF97 Region | C26: =region_pt(C20/10,C21+273.15) -> 1 | F26: IF97 Region | G26: =region_ph(G20/10,G21) -> 2
B27: Phase | C27: =IF(C26=2,"Steam",IF(C26=1,"Liquid",IF(C26=4,"Mixture",""))) -> Liquid | F27: Phase | G27: =IF(G26=2,"Steam",IF(G26=1,"Liquid",IF(G26=4,"Mixture",""))) -> Steam
B28: Isobaric heat capacity | C28: =Cp_pT(C20,C21) -> 1.001534033 | D28: btu/(lb F) | F28: Isobaric heat capacity | G28: =Cp_ph(G20,G21) -> 0.6752417934 | H28: btu/(lb F)
B29: Speed of sound | C29: =w_pT(C20,C21) -> 4752.240198 | D29: ft/s | F29: Speed of sound | G29: =w_ph(G20,G21) -> 3414.439144 | H29: ft/s

Sheet Functions
A1: Steam Tables
A8: Temperature
A9: Tsat_p | B9: 14.5037738 | C9: psi | F9: =Tsat_p(B9) -> 211.2906536 | G9: deg F | H9: Saturation temperature
A10: T_ph | B10: 1 | C10: psi | D10: 100 | E10: btu/lb | F10: =T_ph(B10,D10) -> 101.6943372 | G10: deg F | H10: Temperture as a function of pressure and enthalpy
A11: T_ps | B11: 1 | C11: psi | D11: 1 | E11: btu/(lb F) | F11: =T_ps(B11,D11) -> 101.6943372 | G11: deg F | H11: Temperture as a function of pressure and entropy
A12: T_hs | B12: 100 | C12: btu/lb | D12: 0.2 | E12: btu/(lb F) | F12: =T_hs(B12,D12) -> 40.71270876 | G12: deg F | H12: Temperture as a function of enthalpy and entropy
A13: Pressure
A14: psat_T | B14: 100 | C14: deg F | F14: =psat_t(B14) -> 0.9504393308 | G14: psi (a) | H14: Saturation pressure
A15: p_hs | B15: 100 | C15: btu/lb | D15: =F49 -> 0.1851252476 | E15: btu/(lb F) | F15: =p_hs(B15,D15) -> 5.988291907 | G15: psi (a) | H15: Pressure as a function of h and s.
A16: p_hrho | B16: 100 | C16: btu/lb | D16: 5 | E16: lb/ft3 | F16: =p_hrho(B16,D16) -> 2.273731918 | G16: psi (a) | H16: Pressure as a function of h and rho (density). Very unaccurate for solid water region since it's almost incompressible!
A17: Enthalpy
A18: hV_p | B18: 1 | C18: psi | F18: =hV_p(B18) -> 1105.439339 | G18: btu/lb | H18: Saturated vapour enthalpy
A19: hL_p | B19: 1 | C19: psi | F19: =hL_p(B19) -> 69.72823905 | G19: btu/lb | H19: Saturated liquid enthalpy
A20: hV_T | B20: 100 | C20: deg F | F20: =hV_T(B20) -> 1104.714855 | G20: btu/lb | H20: Saturated vapour enthalpy
A21: hL_T | B21: 100 | C21: deg F | F21: =hL_T(B21) -> 68.03698564 | G21: btu/lb | H21: Saturated liquid enthalpy
A22: h_pT | B22: 14.5037738 | C22: psi | D22: 68 | E22: deg F | F22: =h_pt(B22,D22) -> 36.11857746 | G22: btu/lb | H22: Entalpy as a function of pressure and temperature.
A23: h_ps | B23: 1 | C23: psi | D23: 1 | E23: btu/(lb F) | F23: =h_ps(B23,D23) -> 556.6369136 | G23: btu/lb | H23: Entalpy as a function of pressure and entropy.
A24: h_px | B24: 1 | C24: psi | D24: 0.5 | F24: =h_px(B24,D24) -> 587.5837889 | G24: btu/lb | H24: Entalpy as a function of pressure and vapour fraction
A25: h_Tx | B25: 100 | C25: deg F | D25: 0.5 | F25: =h_tx(B25,D25) -> 586.3759202 | G25: btu/lb | H25: Entalpy as a function of temperature and vapour fraction
A26: h_prho | B26: 1 | C26: psi | D26: 2 | E26: lb/ft3 | F26: =h_prho(B26,D26) -> 71.23095397 | G26: btu/lb | H26: Entalpy as a function of pressure and density. Observe for low temperatures (liquid) this equation has 2 solutions. (Not valid!!)
A27: Specific volume
A28: vV_p | B28: 1 | C28: psi | F28: =vV_p(B28) -> 333.5075189 | G28: ft3/lb | H28: Saturated vapour volume
A29: vL_p | B29: 1 | C29: psi | F29: =vL_p(B29) -> 0.01613681121 | G29: ft3/lb | H29: Saturated liquid volume
A30: vV_T | B30: 100 | C30: deg F | F30: =vV_T(B30) -> 349.8695999 | G30: ft3/lb | H30: Saturated vapour volume
A31: vL_T | B31: 100 | C31: deg F | F31: =vL_T(B31) -> 0.01613117433 | G31: ft3/lb | H31: Saturated liquid volume
A32: v_pT | B32: 1 | C32: psi | D32: 100 | E32: deg F | F32: =v_pT(B32,D32) -> 0.01613117189 | G32: ft3/lb | H32: Specific volume as a function of pressure and temperature.
A33: v_ph | B33: 1 | C33: psi | D33: 1000 | E33: btu/lb | F33: =v_ph(B33,D33) -> 299.5568248 | G33: ft3/lb | H33: Specific volume as a function of pressure and enthalpy
A34: v_ps | B34: 10 | C34: psi | D34: =F49 -> 0.1851252476 | E34: btu/(lb F) | F34: =v_ps(B34,D34) -> 0.01625542384 | G34: ft3/lb | H34: Specific volume as a function of pressure and entropy.
A35: Density
A36: rhoV_p | B36: 1 | C36: psi | F36: =rhoV_p(B36) -> 0.002998433148 | G36: lb/ft3 | H36: Saturated vapour density
A37: rhoL_p | B37: 1 | C37: psi | F37: =rhoL_P(B37) -> 61.97011213 | G37: lb/ft3 | H37: Saturated liquid density
A38: rhoV_T | B38: 100 | C38: deg F | F38: =rhoV_T(B38) -> 0.002858207745 | G38: lb/ft3 | H38: Saturated vapour density
A39: rhoL_T | B39: 100 | C39: deg F | F39: =rhoL_T(B39) -> 61.99176698 | G39: lb/ft3 | H39: Saturated liquid density
A40: rho_pT | B40: 1 | C40: psi | D40: 100 | E40: deg F | F40: =rho_pT(B40,D40) -> 61.99177634 | G40: lb/ft3 | H40: Density as a function of pressure and temperature.
A41: rho_ph | B41: 1 | C41: psi | D41: 1000 | E41: btu/lb | F41: =rho_ph(B41,D41) -> 0.003338264788 | G41: lb/ft3 | H41: Density as a function of pressure and enthalpy
A42: rho_ps | B42: 1 | C42: psi | D42: 1 | E42: btu/(lb F) | F42: =rho_ps(B42,D42) -> 0.006377666498 | G42: lb/ft3 | H42: Density as a function of pressure and entropy.
A43: Specific entropy
A44: sV_p | B44: 1 | C44: psi | F44: =sV_p(B44) -> 1.97762468 | G44: btu/(lb F) | H44: Saturated vapour entropy
A45: sL_p | B45: 1 | C45: psi | F45: =sL_p(B45) -> 0.1326314985 | G45: btu/(lb F) | H45: Saturated liquid entropy
A46: sV_T | B46: 50 | C46: deg F | F46: =sV_T(B46) -> 2.125691679 | G46: btu/(lb F) | H46: Saturated vapour entropy
A47: sL_T | B47: 100 | C47: deg F | F47: =sL_T(B47) -> 0.1296144513 | G47: btu/(lb F) | H47: Saturated liquid entropy
A48: s_pT | B48: 1 | C48: psi | D48: 50 | E48: deg F | F48: =s_pT(B48,D48) -> 0.0360859339 | G48: btu/(lb F) | H48: Specific entropy as a function of pressure and temperature (Returns saturated vapour entalpy if mixture.)
A49: s_ph | B49: 10 | C49: psi | D49: 100 | E49: btu/lb | F49: =s_ph(B49,D49) -> 0.1851252476 | G49: btu/(lb F) | H49: Specific entropy as a function of pressure and enthalpy
A50: Specific internal energy
A51: uV_p | B51: 1 | C51: psi | F51: =uV_p(B51) -> 1043.723867 | G51: btu/lb | H51: Saturated vapour internal energy
A52: uL_p | B52: 1 | C52: psi | F52: =uL_p(B52) -> 69.72525294 | G52: btu/lb | H52: Saturated liquid internal energy
A53: uV_T | B53: 100 | C53: deg F | F53: =uV_T(B53) -> 1043.180305 | G53: btu/lb | H53: Saturated vapour internal energy
A54: uL_T | B54: 100 | C54: deg F | F54: =uL_T(B54) -> 68.03414851 | G54: btu/lb | H54: Saturated liquid internal energy
A55: u_pT | B55: 1 | C55: psi | D55: 100 | E55: deg F | F55: =u_pT(B55,D55) -> 68.0341316 | G55: btu/lb | H55: Specific internal energy as a function of pressure and temperature.
A56: u_ph | B56: 1 | C56: psi | D56: 1000 | E56: btu/lb | F56: =u_ph(B56,D56) -> 944.567095 | G56: btu/lb | H56: Specific internal energy as a function of pressure and enthalpy
A57: u_ps | B57: 1 | C57: psi | D57: 1 | E57: btu/(lb F) | F57: =u_ps(B57,D57) -> 527.6216438 | G57: btu/lb | H57: Specific internal energy as a function of pressure and entropy.
A58: Specific isobaric heat capacity
A59: CpV_p | B59: 1 | C59: psi | F59: =CpV_p(B59) -> 0.4610466176 | G59: btu/(lb F) | H59: Saturated vapour heat capacity
A60: CpL_p | B60: 1 | C60: psi | F60: =CpL_p(B60) -> 0.9980961319 | G60: btu/(lb F) | H60: Saturated liquid heat capacity
A61: CpV_T | B61: 100 | C61: deg F | F61: =CpV_T(B61) -> 0.4607141352 | G61: btu/(lb F) | H61: Saturated vapour heat capacity
A62: CpL_T | B62: 100 | C62: deg F | F62: =CpL_T(B62) -> 0.9981101482 | G62: btu/(lb F) | H62: Saturated liquid heat capacity
A63: Cp_pT | B63: 1 | C63: psi | D63: 100 | E63: deg F | F63: =Cp_pT(B63,D63) -> 0.9981099431 | G63: btu/(lb F) | H63: Specific isobaric heat capacity as a function of pressure and temperature.
A64: Cp_ph | B64: 100 | C64: psi | D64: 200 | E64: btu/lb | F64: =Cp_ph(B64,D64) -> 1.010383515 | G64: btu/(lb F) | H64: Specific isobaric heat capacity as a function of pressure and enthalpy
A65: Cp_ps | B65: 100 | C65: psi | D65: =F49 -> 0.1851252476 | E65: btu/(lb F) | F65: =Cp_ps(B65,D65) -> 0.9983168509 | G65: btu/(lb F) | H65: Specific isobaric heat capacity as a function of pressure and entropy.
A66: Specific isochoric heat capacity
A67: CvV_p | B67: 1 | C67: psi | F67: =CvV_p(B67) -> 0.3473815118 | G67: btu/(lb F) | H67: Saturated vapour isochoric heat capacity
A68: CvL_p | B68: 1 | C68: psi | F68: =CvL_p(B68) -> 0.9741948707 | G68: btu/(lb F) | H68: Saturated liquid isochoric heat capacity
A69: CvV_T | B69: 100 | C69: deg F | F69: =CvV_T(B69) -> 0.3471349757 | G69: btu/(lb F) | H69: Saturated vapour isochoric heat capacity
A70: CvL_T | B70: 100 | C70: deg F | F70: =CvL_T(B70) -> 0.9752371398 | G70: btu/(lb F) | H70: Saturated liquid isochoric heat capacity
A71: Cv_pT | B71: 1 | C71: psi | D71: 100 | E71: deg F | F71: =Cv_pT(B71,D71) -> 0.9752369016 | G71: btu/(lb F) | H71: Specific isochoric heat capacity as a function of pressure and temperature.
A72: Cv_ph | B72: 100 | C72: psi | D72: 200 | E72: btu/lb | F72: =Cv_ph(B72,D72) -> 0.8867422172 | G72: btu/(lb F) | H72: Specific isochoric heat capacity as a function of pressure and enthalpy
A73: Cv_ps | B73: 100 | C73: psi | D73: =D65 -> 0.1851252476 | E73: btu/(lb F) | F73: =Cv_ps(B73,D73) -> 0.9541207319 | G73: btu/(lb F) | H73: Specific isochoric heat capacity as a function of pressure and entropy.
A74: Speed of sound
A75: wV_p | B75: 1 | C75: psi | F75: =wV_p(B75) -> 1430.023344 | G75: ft/s | H75: Saturated vapour speed of sound
A76: wL_p | B76: 1 | C76: psi | F76: =wL_p(B76) -> 5016.126591 | G76: ft/s | H76: Saturated liquid speed of sound
A77: wV_T | B77: 100 | C77: deg F | F77: =wV_T(B77) -> 1427.980732 | G77: ft/s | H77: Saturated vapour speed of sound
A78: wL_T | B78: 100 | C78: deg F | F78: =wL_T(B78) -> 5010.524066 | G78: ft/s | H78: Saturated liquid speed of sound
A79: w_pT | B79: 1 | C79: psi | D79: 100 | E79: deg F | F79: =w_pT(B79,D79) -> 5010.525873 | G79: ft/s | H79: Speed of sound as a function of pressure and temperature.
A80: w_ph | B80: 100 | C80: psi | D80: 100 | E80: btu/lb | F80: =w_ph(B80,D80) -> 5090.517797 | G80: ft/s | H80: Speed of sound as a function of pressure and enthalpy
A81: w_ps | B81: 100 | C81: psi | D81: =D73 -> 0.1851252476 | E81: btu/(lb F) | F81: =w_ps(B81,D81) -> 5090.919366 | G81: ft/s | H81: Speed of sound as a function of pressure and entropy.
A82: Dynamic Viscosity
A83: Viscosity is not part of IAPWS Steam IF97. Equations from ""Revised Release on the IAPWS Formulation 1985 for the Viscosity of Ordinary Water Substance"", 2003 are used.
A84: Viscosity in the mixed region (4) is interpolated according to the density. This is not true since it will be two fases.
A85: my_pT | B85: 1 | C85: psi | D85: 100 | E85: deg F | F85: =my_pT(B85,D85) -> 1.647817811 | G85: lb/ft/hr | H85: Viscosity as a function of pressure and temperature.
A86: my_ph | B86: 100 | C86: psi | D86: 100 | E86: btu/lb | F86: =my_ph(B86,D86) -> 1.211118873 | G86: lb/ft/hr | H86: Viscosity as a function of pressure and enthalpy
A87: my_ps | B87: 100 | C87: psi | D87: =D81 -> 0.1851252476 | E87: btu/(lb F) | F87: =my_ps(B87,D87) -> 1.208179571 | G87: lb/ft/hr | H87: Viscosity as a function of pressure and entropy.
A88: Prandtl
A89: Calcualted as Cp*my/tc
A90: pr_pT | B90: 1 | C90: psi | D90: 200 | E90: deg F | F90: =pr_pT(B90,D90) -> 0.9701202438 | G90: -
A91: pr_ph | B91: 1 | C91: psi | D91: 0.19 | E91: btu/lb | F91: =pr_ph(B91,D91) -> 13.40562938 | G91: -
A92: Thermal Conductivity
A93: Revised release on the IAPS Formulation 1985 for the Thermal Conductivity of ordinary water substance (IAPWS 1998)
A94: tcL_p | B94: 1 | C94: psi | F94: =tcL_p(B94) -> 0.3622261387 | G94: btu/(h*ft*F) | H94: Saturated vapour thermal conductivity
A95: tcV_p | B95: 1 | C95: psi | F95: =tcV_p(B95) -> 0.01119774893 | G95: btu/(h*ft*F) | H95: Saturated liquid thermal conductivity
A96: tcL_T | B96: 50 | C96: deg F | F96: =tcL_T(B96) -> 0.3362266821 | G96: btu/(h*ft*F) | H96: Saturated vapour thermal conductivity
A97: tcV_T | B97: 50 | C97: deg F | F97: =tcV_T(B97) -> 0.009946376555 | G97: btu/(h*ft*F) | H97: Saturated liquid thermal conductivity
A98: tc_pT | B98: 1 | C98: psi | D98: 50 | E98: deg F | F98: =tc_pt(B98,D98) -> 0.3362285212 | G98: btu/(h*ft*F) | H98: Thermal conductivity as a function of pressure and temperature.
A99: tc_ph | B99: 1 | C99: psi | D99: 100 | E99: btu/(lb F) | F99: =tc_ph(B99,D99) -> 0.020136752 | G99: btu/(h*ft*F) | H99: Thermal conductivity as a function of pressure and enthalpy
A100: tc_hs | B100: 100 | C100: btu/lb | D100: =D73 -> 0.1851252476 | E100: btu/(lb F) | F100: =tc_hs(B100,D100) -> 0.373481961 | G100: btu/(h*ft*F) | H100: Thermal conductivity as a function of enthalpy and entropy
A101: Surface Tension
A102: IAPWS Release on Surface Tension of Ordinary Water Substance, September 1994
A103: st_T | B103: 100 | C103: deg F | F103: =st_T(B104) -> 0.005342277531 | G103: lb/ft | H103: Surface tension for two phase water/steam as a function of T
A104: st_p | B104: 1 | C104: psi | F104: =st_p(B104) -> 0.00478309732 | G104: lb/ft | H104: Surface tension for two phase water/steam as a function of T
A105: Vapour fraction
A106: x_ph | B106: 1 | C106: psi | D106: 1000 | E106: btu/lb | F106: =x_ph(B106,D106) -> 0.8981961874 | H106: Vapour fraction as a function of pressure and enthalpy
A107: x_ps | B107: 1 | C107: psi | D107: 4 | E107: btu/(lb F) | F107: =x_ps(B107,D107) -> 1 | H107: Vapour fraction as a function of pressure and entropy.
A108: Vapour Volume Fraction
A109: Observe that vapour volume fraction is very sensitive. Vapour volume is about 1000 times greater than liquid volume and therfore vapour volume fraction
A110: gets close to the accurancy of steam IF-97
A111: vx_ph | B111: 1 | C111: psi | D111: 418 | E111: btu/lb | F111: =vx_ph(B111,D111) -> 0.9999045037 | H111: Vapour volume fraction as a function of pressure and enthalpy
A112: vx_ps | B112: 1 | C112: psi | D112: 4 | E112: btu/(lb F) | F112: =vx_ps(B112,D112) -> 1 | H112: Vapour volume fraction as a function of pressure and entropy.
